bitfinex/quotes_SOLUSD_20250806
["timestamp","ask_amount","ask_price","bid_price","bid_amount"]
[1754439077298,0.69,163.96,163.94,0.06]
[1754439077481,4.76891249,163.96,163.95,42.64]
[1754439077683,30.76891249,163.96,163.95,42.64]
[1754439077882,30.76891249,163.96,163.94,0.06]
[1754439077883,26.0,163.95,163.94,0.06]
[1754439078196,30.73891249,163.95,163.94,0.06]
[1754439078993,36.83833304,163.95,163.94,0.06]
[1754439083002,36.84037277,163.95,163.94,0.06]
[1754439084884,4.08095222,163.95,163.94,0.06]
[1754439086607,4.08095222,163.95,163.94,0.72]
[1754439086989,4.08095222,163.95,163.94,43.36]
[1754439087189,4.08095222,163.95,163.94,49.4597926]
[1754439088411,4.08095222,163.95,163.94,42.7]
[1754439091195,4.08095222,163.95,163.94,49.4597926]
[1754439093016,4.08095222,163.95,163.94,48.7997926]
[1754439093311,4.08095222,163.95,163.94,137.8997926]
[1754439093894,4.08095222,163.95,163.94,131.8]
[1754439094315,4.78095222,163.95,163.94,131.8]
[1754439095317,4.08095222,163.95,163.94,131.8]
[1754439095506,4.08095222,163.95,163.94,137.8997926]
[1754439096204,4.08095222,163.95,163.94,138.6097926]
[1754439096402,0.03,163.96,163.95,15.10621557]
[1754439096711,4.12209675,163.96,163.95,24.19107537]
[1754439096914,0.03,163.96,163.95,24.80101742]
[1754439098089,0.03,163.96,163.95,23.48107537]
[1754439098398,0.03,163.96,163.95,29.58049592]
[1754439098927,0.03,163.96,163.95,21.20563612]
[1754439099412,0.73,163.96,163.94,137.89970143]
[1754439099605,4.79018103,163.95,163.94,89.16]
[1754439100008,4.79018103,163.95,163.94,131.8]
[1754439101424,4.09018103,163.95,163.94,131.8]
[1754439101606,4.79018103,163.95,163.94,131.8]
[1754439102007,4.79018103,163.95,163.94,0.06]
[1754439104429,36.88960158,163.95,163.94,0.06]
[1754439104838,30.79018103,163.95,163.94,0.06]
[1754439106226,36.88960158,163.95,163.94,0.06]
[1754439106710,41.99079186,163.95,163.94,0.06]
[1754439106915,36.88960158,163.95,163.93,0.06]
[1754439107243,30.79018103,163.94,163.93,0.06]
[1754439108629,36.88997363,163.94,163.93,0.06]
[1754439109115,41.99600215,163.94,163.93,0.06]
[1754439112808,4.09018103,163.94,163.93,0.06]
[1754439113003,36.88997363,163.94,163.93,0.06]
[1754439113640,30.79018103,163.94,163.93,0.06]
[1754439116414,36.88997363,163.94,163.93,0.06]
[1754439119253,53.52997363,163.94,163.93,0.06]
[1754439121939,58.63600215,163.94,163.93,0.06]
[1754439122142,53.52997363,163.94,163.93,0.06]
[1754439122342,58.63600215,163.94,163.93,0.06]
[1754439122543,53.52997363,163.94,163.93,0.06]
[1754439122914,58.63600215,163.94,163.93,0.06]
[1754439125047,4.09018103,163.94,163.93,0.06]
[1754439125237,4.09018103,163.94,163.93,0.73]
[1754439125639,30.09018103,163.94,163.93,0.73]
[1754439126449,30.09018103,163.94,163.93,0.06]
[1754439128442,36.90997363,163.94,163.93,0.06]
[1754439131951,42.01600215,163.94,163.93,0.06]
[1754439132838,36.90997363,163.94,163.93,0.06]
[1754439133269,42.01600215,163.94,163.93,0.06]
[1754439133551,42.15816372,163.94,163.93,0.06]
[1754439133733,36.90997363,163.94,163.92,0.06]
[1754439133929,51.83542166,163.93,163.92,0.06]
[1754439134139,52.55542166,163.93,163.92,0.06]
[1754439134626,57.46765242,163.93,163.92,0.06]
[1754439134950,63.56781712,163.93,163.92,0.06]
[1754439135954,9.19542166,163.93,163.92,0.06]
[1754439136164,4.09018103,163.93,163.92,0.73]
[1754439136770,30.09018103,163.93,163.92,0.73]
[1754439136956,30.09018103,163.93,163.92,0.06]
[1754439138241,36.91034573,163.93,163.92,0.06]
[1754439139684,41.29558636,163.93,163.92,0.06]
[1754439139842,30.09018103,163.93,163.92,0.73]
[1754439141161,30.09018103,163.93,163.92,0.06]
[1754439142171,30.81018103,163.93,163.92,0.06]
[1754439142667,30.09018103,163.93,163.92,0.06]
[1754439144242,30.81018103,163.93,163.92,0.06]
[1754439144649,30.09018103,163.93,163.92,0.06]
[1754439145180,36.91034573,163.93,163.92,0.06]
[1754439145469,42.01558636,163.93,163.92,0.06]
[1754439147179,36.91034573,163.93,163.92,0.06]
[1754439148382,37.0525073,163.93,163.92,0.06]
[1754439148678,37.0525073,163.93,163.85,0.67]
[1754439148679,0.14216157,163.92,163.85,0.67]
[1754439148885,5.1161957,163.89,163.84,2.443868]
[1754439149171,4.81018103,163.88,163.84,2.443868]
[1754439149350,4.81018103,163.87,163.84,2.443868]
[1754439149655,26.0,163.85,163.84,2.443868]
[1754439149971,26.0,163.85,163.82,42.66]
[1754439149972,30.09018103,163.85,163.82,42.66]
[1754439150178,26.72,163.85,163.82,42.66]
[1754439150359,4.09210535,163.84,163.82,42.66]
[1754439150674,4.09210535,163.83,163.82,42.66]
[1754439150852,4.09210535,163.83,163.79,6.77527869]
[1754439151082,0.72,163.84,163.79,25.10988569]
[1754439151280,0.72,163.84,163.8,0.67]
[1754439151281,4.08949053,163.83,163.8,0.67]
[1754439151491,4.08949053,163.82,163.8,0.67]
[1754439151707,4.08949053,163.83,163.8,0.67]
[1754439151908,4.08949053,163.82,163.8,0.67]
[1754439152110,4.08949053,163.83,163.8,0.67]
[1754439152483,4.08949053,163.83,163.8,6.77494858]
[1754439153219,4.08949053,163.83,163.79,6.10525449]
[1754439153384,4.80949053,163.83,163.79,6.10525449]
[1754439153710,4.08949053,163.82,163.79,0.67]
[1754439154215,4.08949053,163.82,163.79,6.775345]
[1754439154383,26.0,163.82,163.79,6.775345]
[1754439154794,26.0,163.82,163.78,76.12082157]
[1754439154795,0.67,163.82,163.78,42.68]
[1754439155124,30.75120156,163.81,163.77,0.2]
[1754439155426,26.0,163.78,163.77,0.2]
[1754439155627,30.08120156,163.78,163.77,0.2]
[1754439155799,30.08120156,163.78,163.77,7.01612444]
[1754439155800,26.0,163.78,163.77,7.01612444]
[1754439156931,5.78513169,163.84,163.77,15.39098424]
[1754439157224,0.67,163.84,163.78,0.71]
[1754439157425,26.0,163.82,163.78,0.71]
[1754439157719,26.0,163.81,163.78,0.71]
[1754439158210,26.0,163.81,163.77,49.04612444]
[1754439158411,26.0,163.82,163.78,0.71]
[1754439158725,26.0,163.81,163.78,6.10564934]
[1754439159199,0.67,163.82,163.77,42.94]
[1754439159200,0.67,163.8,163.77,42.94]
[1754439160309,0.67,163.8,163.77,49.04611156]
[1754439160525,26.67,163.82,163.77,49.04611156]
[1754439160820,26.67,163.82,163.78,0.71]
[1754439161128,26.0,163.8,163.77,49.04611156]
[1754439161326,0.67,163.8,163.77,42.94]
[1754439162707,0.67,163.79,163.77,0.2]
[1754439162906,0.67,163.78,163.77,0.2]
[1754439163300,6.10465229,163.81,163.77,0.2]
[1754439163508,0.67,163.8,163.77,0.2]
[1754439163700,0.67,163.79,163.77,0.2]
[1754439165828,0.67,163.78,163.77,0.2]
[1754439167743,6.77575161,163.78,163.77,0.2]
[1754439169438,6.10575161,163.78,163.77,0.2]
[1754439169727,6.77575161,163.78,163.77,0.2]
[1754439169951,26.0,163.78,163.77,0.2]
[1754439170318,30.72544986,163.78,163.77,0.2]
[1754439170832,30.86761143,163.78,163.77,0.2]
[1754439171844,36.97336304,163.78,163.77,0.2]
[1754439175224,0.14216157,163.77,163.76,0.2]
[1754439175446,47.62761143,163.77,163.76,0.2]
[1754439175848,58.68539315,163.77,163.76,0.08843612]
[1754439176026,15.24837714,163.76,163.75,0.2]
[1754439176221,15.24837714,163.76,163.73,9.375]
[1754439176222,41.24837714,163.74,163.73,9.375]
[1754439176471,88.813827,163.74,163.73,9.375]
[1754439177326,88.813827,163.74,163.61,0.2]
[1754439177327,26.0,163.7,163.61,0.2]
[1754439177526,15.24837714,163.73,163.61,0.2]
[1754439177527,26.0,163.66,163.61,0.91]
[1754439177743,26.0,163.69,163.63,6.11134877]
[1754439177920,26.0,163.69,163.64,0.71]
[1754439178122,0.67,163.68,163.62,0.71]
[1754439178324,0.67,163.68,163.63,0.71]
[1754439178629,26.0,163.67,163.64,0.71]
[1754439179150,26.0,163.67,163.61,0.2]
[1754439179361,26.0,163.67,163.62,0.71]
[1754439179656,26.0,163.67,163.61,0.2]
[1754439179657,0.81216157,163.66,163.61,0.2]
[1754439179860,0.67,163.65,163.61,0.2]
[1754439180331,32.77991181,163.67,163.62,0.71]
[1754439180665,26.0,163.67,163.63,0.71]
[1754439181226,26.0,163.67,163.64,0.71]
[1754439181542,26.0,163.67,163.65,0.71]
[1754439181745,26.0,163.7,163.66,0.71]
[1754439182130,26.0,163.7,163.64,8.3748598]
[1754439182328,26.0,163.7,163.67,0.71]
[1754439182529,0.67,163.72,163.61,0.91]
[1754439182530,45.23,163.69,163.61,0.91]
[1754439182729,26.0,163.66,163.61,0.2]
[1754439183139,0.67,163.65,163.61,0.2]
[1754439183655,26.0,163.66,163.61,0.2]
[1754439183871,26.0,163.66,163.62,0.69]
[1754439184356,26.0,163.66,163.63,0.69]
[1754439184952,0.66,163.7,163.64,0.69]
[1754439185252,45.24,163.72,163.65,8.3748598]
[1754439185559,44.58,163.72,163.66,0.69]
[1754439185861,0.66,163.74,163.67,6.10985519]
[1754439186157,26.0,163.72,163.68,0.69]
[1754439186732,6.76735899,163.74,163.68,0.69]
[1754439186733,26.0,163.71,163.68,0.69]
[1754439187147,26.0,163.72,163.68,0.69]
[1754439187955,26.0,163.72,163.68,6.79946152]
[1754439188146,26.0,163.71,163.68,6.79946152]
[1754439189057,26.66,163.7,163.64,15.9667541]
[1754439189361,26.66,163.69,163.65,6.11060189]
[1754439189657,26.66,163.69,163.65,6.80060189]
[1754439189658,26.0,163.69,163.65,6.80060189]
[1754439189852,26.0,163.7,163.66,0.69]
[1754439190054,26.0,163.7,163.66,6.79993849]
[1754439190234,26.66,163.7,163.66,6.79993849]
[1754439191084,26.66,163.7,163.66,6.10993849]
[1754439191251,26.66,163.7,163.66,6.79993849]
[1754439191765,50.71721623,163.75,163.66,6.79993849]
[1754439191950,26.0,163.72,163.67,29.24082221]
[1754439192149,26.0,163.72,163.68,0.69]
[1754439193070,26.0,163.72,163.69,0.69]
[1754439193241,26.0,163.72,163.7,6.10873549]
[1754439193639,0.69,163.75,163.7,19.55334213]
[1754439193881,0.69,163.75,163.74,15.10621557]
[1754439193882,0.03,163.75,163.74,15.10621557]
[1754439194184,0.03,163.75,163.74,14.13460664]
[1754439194572,0.03,163.75,163.74,0.69]
[1754439194864,0.03,163.75,163.74,15.10621557]
[1754439195473,0.03,163.75,163.74,21.21345876]
[1754439197091,0.03,163.75,163.74,21.90345876]
[1754439197768,0.03,163.75,163.74,35.3480654]
[1754439198388,1e-08,163.75,163.74,35.49022697]
[1754439199372,1e-08,163.75,163.74,53.82483297]
[1754439199886,1e-08,163.75,163.74,53.13483297]
[1754439200049,1e-08,163.75,163.74,53.82483297]
[1754439203449,1e-08,163.75,163.74,54.43555728]
[1754439203955,0.66,163.86,163.79,0.14216157]
[1754439204152,0.66,163.88,163.83,13.44460664]
[1754439204479,26.66,163.88,163.84,44.26]
[1754439204675,0.66,163.87,163.84,44.26]
[1754439204883,0.66,163.87,163.85,6.10314311]
[1754439205248,0.66,163.86,163.85,6.10314311]
[1754439205681,26.0,163.88,163.85,6.10314311]
[1754439205855,0.66,163.88,163.85,6.10314311]
[1754439206451,0.66,163.87,163.85,19.54774975]
[1754439207151,26.69,163.9,163.85,19.54774975]
[1754439207363,0.66,163.89,163.85,19.54774975]
[1754439207567,0.66,163.88,163.85,19.54774975]
[1754439208072,26.03,163.9,163.85,19.54774975]
[1754439208287,0.66,163.89,163.85,19.54774975]
[1754439208472,26.03,163.9,163.85,19.54774975]
[1754439208796,26.03,163.9,163.88,23.48912293]
[1754439208797,0.03,163.9,163.88,23.48912293]
[1754439209092,0.03,163.9,163.89,73.79077647]
[1754439210580,0.03,163.9,163.89,65.40786911]
[1754439210784,0.03,163.9,163.89,78.81365541]
[1754439212795,0.03,163.9,163.89,65.40786911]
[1754439212986,0.69,163.9,163.84,6.10351562]
[1754439213198,0.69,163.9,163.86,15.10621557]
[1754439213374,0.69,163.9,163.87,13.4057863]
[1754439213574,0.03,163.9,163.89,28.51200187]
[1754439213869,0.03,163.9,163.89,15.10621557]
[1754439214066,0.73,163.9,163.89,15.10621557]
[1754439214377,0.73,163.9,163.88,44.16]
[1754439214693,0.73,163.9,163.88,50.2619834]
[1754439215199,0.7,163.89,163.88,50.2619834]
[1754439215393,0.7,163.89,163.88,44.16]
[1754439215783,0.03,163.9,163.88,50.26202587]
[1754439216772,0.73,163.9,163.88,50.26202587]
[1754439216972,0.7,163.89,163.88,50.26202587]
[1754439217184,0.7,163.89,163.88,44.16]
[1754439217384,0.7,163.89,163.87,15.10621557]
[1754439217587,0.03,163.9,163.88,89.1]
[1754439218100,0.7,163.89,163.88,89.1]
[1754439222275,26.0,163.89,163.88,133.14]
[1754439222481,0.03,163.9,163.88,133.14]
[1754439223304,0.73,163.9,163.88,133.14]
[1754439223505,0.7,163.89,163.87,89.1]
[1754439223701,0.7,163.89,163.86,44.06]
[1754439223885,0.7,163.89,163.85,44.06]
[1754439224088,0.7,163.89,163.85,133.16]
[1754439225003,6.80168576,163.89,163.85,89.1]
[1754439225206,26.0,163.86,163.83,44.04]
[1754439225507,0.7,163.85,163.83,44.04]
[1754439225693,0.7,163.85,163.8,21.21113293]
[1754439226006,0.7,163.84,163.81,44.04]
[1754439226184,0.7,163.84,163.81,50.1445873]
[1754439226626,0.7,163.84,163.81,44.04]
[1754439226917,0.7,163.83,163.8,44.06]
[1754439227079,0.7,163.82,163.8,44.06]
[1754439227478,0.7,163.82,163.79,44.06]
[1754439227906,0.7,163.85,163.8,6.1050061]
[1754439228111,26.0,163.84,163.81,44.06]
[1754439228302,26.7,163.84,163.81,44.06]
[1754439228480,26.0,163.84,163.81,44.06]
[1754439228684,0.7,163.83,163.81,44.06]
[1754439229125,0.7,163.83,163.78,15.10621557]
[1754439229307,0.7,163.83,163.79,44.04]
[1754439229999,0.7,163.82,163.79,44.04]
[1754439230313,0.7,163.82,163.79,50.14534581]
[1754439230612,26.0,163.84,163.79,50.14534581]
[1754439230792,0.7,163.82,163.79,50.14534581]
[1754439230990,0.7,163.82,163.79,44.04]
[1754439231189,32.10351989,163.84,163.79,44.04]
[1754439231190,0.7,163.81,163.79,44.04]
[1754439231596,32.10351989,163.84,163.79,44.04]
[1754439231898,0.7,163.83,163.79,44.04]
[1754439232431,0.7,163.82,163.79,44.04]
[1754439234298,26.7,163.84,163.79,50.14534499]
[1754439234618,26.7,163.84,163.79,50.85534499]
[1754439235505,26.7,163.84,163.8,0.71]
[1754439235908,0.7,163.83,163.79,44.04]
[1754439236309,0.7,163.83,163.79,44.75]
[1754439236503,4.76224135,163.83,163.79,44.75]
[1754439236917,4.76224135,163.83,163.79,50.8553103]
[1754439237528,4.76224135,163.83,163.79,44.04]
[1754439237894,4.76224135,163.83,163.79,50.85523451]
[1754439238090,4.76224135,163.83,163.79,139.95523451]
[1754439238596,30.76224135,163.83,163.79,139.95523451]
[1754439238835,4.06224135,163.82,163.79,139.95523451]
[1754439239125,4.06224135,163.82,163.79,133.85]
[1754439239329,4.06224135,163.82,163.79,133.14]
[1754439239694,4.76224135,163.82,163.79,133.14]
[1754439239896,0.7,163.81,163.79,133.14]
[1754439240107,26.0,163.79,163.75,0.06]
[1754439240323,26.0,163.79,163.75,0.77]
[1754439240625,4.07200922,163.78,163.76,0.71]
[1754439240801,4.07200922,163.78,163.75,43.96]
[1754439241228,4.07200922,163.78,163.75,50.06669836]
[1754439241407,4.07200922,163.78,163.75,50.77669836]
[1754439241599,4.07200922,163.78,163.75,43.96]
[1754439241816,4.07200922,163.78,163.75,44.67]
[1754439242133,4.07200922,163.78,163.75,43.96]
[1754439242320,4.07200922,163.78,163.75,50.06686204]
[1754439242508,4.07200922,163.78,163.75,50.77686204]
[1754439242827,30.07200922,163.78,163.75,50.77686204]
[1754439243016,26.0,163.78,163.75,50.77686204]
[1754439243597,26.0,163.78,163.75,50.06686204]
[1754439243933,26.0,163.78,163.75,50.77686204]
[1754439244824,0.7,163.8,163.75,50.06686204]
[1754439245007,26.0,163.8,163.76,15.81621557]
[1754439245210,5.72309335,163.84,163.77,44.59]
[1754439245413,4.06967909,163.83,163.79,8.39224408]
[1754439245618,4.06967909,163.84,163.8,52.98224408]
[1754439245935,4.06967909,163.85,163.81,0.71]
[1754439246228,4.72967909,163.85,163.8,49.98488908]
[1754439246441,0.66,163.84,163.78,49.98548514]
[1754439246647,26.0,163.82,163.77,6.10600732]
[1754439246937,0.66,163.81,163.77,6.10600732]
[1754439247626,4.73065018,163.81,163.77,6.10600732]
[1754439247998,0.66,163.8,163.76,49.98637734]
[1754439248230,0.66,163.79,163.76,6.10637734]
[1754439248817,4.07065018,163.81,163.76,6.10637734]
[1754439249006,0.66,163.8,163.76,6.10637734]
[1754439249410,26.0,163.78,163.75,43.94]
[1754439249614,26.66,163.78,163.75,43.94]
[1754439249926,26.0,163.78,163.75,50.04684723]
[1754439250517,0.66,163.78,163.75,50.04684723]
[1754439250834,26.66,163.77,163.75,0.06]
[1754439252021,26.0,163.77,163.75,0.77]
[1754439252217,26.0,163.77,163.75,0.06]
[1754439252532,26.0,163.78,163.75,0.06]
[1754439252923,26.66,163.79,163.75,0.06]
[1754439253133,26.0,163.78,163.75,0.77]
[1754439254335,26.0,163.78,163.75,6.87654669]
[1754439254919,26.0,163.79,163.75,6.16654669]
[1754439255134,26.0,163.81,163.76,43.82]
[1754439255311,0.66,163.8,163.76,44.53]
[1754439256152,26.0,163.81,163.76,44.53]
[1754439256332,26.0,163.81,163.77,6.81612444]
[1754439256728,48.91309335,163.86,163.78,24.20845965]
[1754439257044,26.0,163.83,163.78,24.20845965]
[1754439257340,4.06812328,163.82,163.78,24.20845965]
[1754439257849,4.06812328,163.82,163.79,6.81537883]
[1754439258348,4.06812328,163.82,163.77,15.2653111]
[1754439258349,0.66,163.81,163.77,6.10612444]
[1754439258647,4.06812328,163.81,163.76,6.10635425]
[1754439258942,0.66,163.8,163.76,6.10635425]
[1754439259544,0.66,163.8,163.75,6.16687022]
[1754439259840,0.66,163.8,163.75,6.87687022]
[1754439260945,26.66,163.82,163.77,23.49845965]
[1754439261114,0.66,163.85,163.79,8.39224408]
[1754439261315,4.07274872,163.84,163.79,9.10224408]
[1754439261548,4.07274872,163.84,163.77,58.90621557]
[1754439261549,26.0,163.83,163.81,6.10463341]
[1754439261757,4.07274872,163.82,163.81,6.10463341]
[1754439261923,26.0,163.83,163.81,6.10463341]
[1754439262526,0.66,163.85,163.81,6.10463341]
[1754439262725,4.7356783,163.85,163.81,6.10463341]
[1754439263045,0.66,163.84,163.81,6.10463341]
[1754439263441,4.0756783,163.84,163.81,6.10463341]
[1754439263635,4.7356783,163.85,163.81,6.10463341]
[1754439263839,4.0756783,163.84,163.81,6.10463341]
[1754439264944,4.0756783,163.85,163.82,0.71]
[1754439265142,4.1056783,163.85,163.82,0.71]
[1754439265344,4.1056783,163.85,163.83,6.10388817]
[1754439265737,4.1056783,163.85,163.83,15.20613225]
[1754439265938,4.1056783,163.85,163.83,6.81388817]
[1754439266125,4.1056783,163.85,163.83,6.10388817]
[1754439266454,4.0756783,163.84,163.83,6.10388817]
[1754439267149,4.0756783,163.84,163.81,21.21084898]
[1754439268029,4.0756783,163.84,163.81,21.92084898]
[1754439268229,4.0756783,163.83,163.81,21.92084898]
[1754439268537,4.0756783,163.84,163.81,21.92084898]
[1754439268746,4.0756783,163.83,163.81,29.60309306]
[1754439268930,4.0756783,163.84,163.83,6.10388817]
[1754439269836,4.0756783,163.84,163.83,119.41234782]
[1754439270036,4.0756783,163.84,163.83,163.09234782]
[1754439270228,4.1056783,163.85,163.83,163.09234782]
[1754439270421,0.03,163.85,163.84,24.20845965]
[1754439270623,4.11552143,163.85,163.84,24.20845965]
[1754439270824,4.11552143,163.85,163.84,30.31197527]
[1754439271836,0.03,163.85,163.84,119.41197527]
[1754439274971,0.03,163.85,163.84,30.45413684]
[1754439275748,0.03,163.86,163.85,15.10621557]
[1754439275949,0.03,163.86,163.85,67.07845965]
[1754439276147,0.03,163.86,163.85,67.74845965]
[1754439276645,0.03,163.86,163.85,162.95160276]
[1754439276861,0.03,163.86,163.85,73.85160276]
[1754439277742,0.03,163.86,163.85,78.63672676]
[1754439279160,0.03,163.9,163.85,93.89458455]
[1754439279454,0.03,163.9,163.89,8.39224408]
[1754439279656,0.03,163.9,163.89,58.64621557]
[1754439279856,0.03,163.9,163.89,67.03845965]
[1754439280267,0.03,163.9,163.89,73.14011319]
[1754439280567,0.03,163.9,163.89,73.81011319]
[1754439280787,0.03,163.92,163.89,89.06424706]
[1754439281077,0.03,163.92,163.91,23.49845965]
[1754439281246,0.03,163.92,163.91,67.03845965]
[1754439281441,0.03,163.92,163.91,67.70845965]
[1754439281842,0.03,163.92,163.91,73.80936868]
[1754439282450,0.03,163.93,163.92,15.10621557]
[1754439282656,0.03,163.93,163.92,23.49845965]
[1754439283081,0.03,163.93,163.92,25.94083465]
[1754439284081,0.03,163.93,163.92,32.04137149]
[1754439284658,0.03,163.93,163.92,32.71137149]
[1754439286561,0.03,163.93,163.92,23.64912741]
[1754439286764,0.03,163.93,163.92,32.04137149]
[1754439286965,0.73,163.93,163.92,32.04137149]
[1754439287391,0.03,163.93,163.92,32.04137149]
[1754439288000,0.03,163.93,163.92,32.71137149]
[1754439288466,0.03,163.93,163.92,32.04137149]
[1754439290001,0.03,163.93,163.92,32.71137149]
[1754439290401,0.03,163.93,163.92,32.04137149]
[1754439291378,0.03,163.93,163.92,121.14137149]
[1754439292398,0.03,163.93,163.92,112.74912741]
[1754439292599,0.73,163.93,163.92,110.30675241]
[1754439292913,0.73,163.93,163.92,95.20053684]
[1754439297404,0.73,163.93,163.91,43.54]
[1754439297587,0.73,163.93,163.9,89.1]
[1754439297788,0.73,163.93,163.9,132.46]
[1754439299094,0.73,163.93,163.9,138.56124157]
[1754439300705,0.03,163.93,163.9,138.56124157]
[1754439301009,0.03,163.93,163.91,8.39224408]
[1754439301309,0.03,163.93,163.92,43.34]
[1754439301516,0.03,163.93,163.88,0.06]
[1754439301717,26.0,163.92,163.88,43.4]
[1754439301888,0.7,163.91,163.88,0.06]
[1754439303196,0.73,163.93,163.89,43.36]
[1754439303403,0.7,163.92,163.89,43.36]
[1754439303582,0.66,163.91,163.89,43.36]
[1754439304090,0.66,163.9,163.89,43.36]
[1754439304294,0.66,163.9,163.89,43.34]
[1754439304990,0.66,163.9,163.88,0.06]
[1754439305496,0.66,163.89,163.88,0.06]
[1754439305697,4.05839646,163.92,163.88,6.16190675]
[1754439306032,0.66,163.91,163.89,43.32]
[1754439306929,26.69,163.93,163.9,14.49352534]
[1754439307090,26.03,163.93,163.9,14.49352534]
[1754439307290,26.03,163.93,163.9,6.10128126]
[1754439307602,26.69,163.93,163.9,6.10128126]
[1754439307813,26.69,163.93,163.91,43.3]
[1754439307994,26.69,163.93,163.91,49.40080068]
[1754439309414,26.69,163.93,163.91,43.3]
[1754439309995,26.69,163.93,163.91,49.40089305]
[1754439310890,0.03,163.93,163.92,8.39224408]
[1754439311092,0.03,163.93,163.92,9.05224408]
[1754439311411,0.03,163.93,163.92,15.15278092]
[1754439311787,0.03,163.93,163.92,30.25899649]
[1754439312003,0.03,163.93,163.92,30.24195146]
[1754439313113,9.06519905,163.93,163.91,6.10081079]
[1754439313314,8.40519905,163.93,163.91,43.26]
[1754439313609,9.03519905,163.92,163.91,43.26]
[1754439316807,13.1114721,163.92,163.9,43.24]
[1754439317925,4.07627305,163.92,163.9,49.34101512]
[1754439318222,4.07627305,163.92,163.91,24.14141462]
[1754439318431,0.03,163.93,163.91,24.14141462]
[1754439318737,0.03,163.93,163.92,67.40141462]
[1754439319423,0.03,163.93,163.92,66.74141462]
[1754439320013,0.03,163.93,163.92,73.50195146]
[1754439320635,0.03,163.93,163.92,72.84195146]
[1754439320841,13.14747894,163.93,163.92,43.26]
[1754439321017,0.03,163.93,163.92,43.24]
[1754439321216,0.03,163.93,163.92,51.61519905]
[1754439321419,4.11220501,163.93,163.92,51.61519905]
[1754439321715,0.03,163.93,163.92,51.61519905]
[1754439321915,4.11213164,163.93,163.92,51.61519905]
[1754439322151,4.11213164,163.93,163.92,154.20675241]
[1754439322152,0.03,163.93,163.92,154.20675241]
[1754439322343,0.03,163.93,163.92,73.62411303]
[1754439322515,0.03,163.98,163.94,0.14216157]
[1754439322725,0.03,163.98,163.97,23.62357619]
[1754439322920,0.03,163.98,163.97,66.94357619]
[1754439323141,0.03,163.98,163.97,67.60357619]
[1754439323521,1e-08,163.98,163.97,67.60357619]
[1754439323762,1e-08,163.98,163.97,70.04475919]
[1754439324243,1e-08,163.98,163.97,76.14343577]
[1754439324439,1e-08,163.98,163.97,76.75330342]
[1754439327258,1e-08,164.0,163.99,26.0]
[1754439327560,1e-08,164.0,163.99,182.61336947]
[1754439327763,1e-08,164.0,163.99,182.66357619]
[1754439328261,1e-08,164.01,164.0,15.24837714]
[1754439328563,1e-08,164.01,164.0,24.28357619]
[1754439328964,1e-08,164.01,164.0,24.89333228]
[1754439329128,1e-08,164.01,164.0,30.99089325]
[1754439329560,1e-08,164.01,164.0,73.59089325]
[1754439330958,1e-08,164.01,164.0,74.25089325]
[1754439332559,1e-08,164.01,164.0,73.59089325]
[1754439332768,1e-08,164.01,164.0,76.03162925]
[1754439333068,1e-08,164.01,164.0,165.13162925]
[1754439333266,1e-08,164.01,164.0,121.11971159]
[1754439333438,0.66000001,164.01,164.0,164.37971159]
[1754439333769,1e-08,164.01,164.0,164.37971159]